bitfinex/quotes_BTCUSD_20260125
["timestamp","ask_amount","ask_price","bid_price","bid_amount"]
[1769365669870,0.11354001,87508.0,87485.0,0.017564]
[1769365670076,0.11354001,87507.0,87481.0,0.01143105]
[1769365670275,0.00533716,87505.0,87476.0,0.04576]
[1769365670513,0.4029649,87514.0,87476.0,0.04576]
[1769365670514,0.11354001,87504.0,87476.0,0.04576]
[1769365670765,0.11354001,87503.0,87476.0,0.04576]
[1769365670967,0.11354001,87502.0,87477.0,0.01143157]
[1769365671115,0.09081647,87514.0,87485.0,0.001]
[1769365671317,0.11358596,87513.0,87486.0,0.05715183]
[1769365671498,0.05712998,87520.0,87493.0,0.01142948]
[1769365671499,0.11358596,87512.0,87493.0,0.01142948]
[1769365671682,0.11358596,87511.0,87491.0,0.01142974]
[1769365671887,0.11358596,87510.0,87489.0,1.07842074]
[1769365672094,0.11358596,87509.0,87493.0,0.01142948]
[1769365672300,0.09081647,87524.0,87509.0,0.00081417]
[1769365672669,0.4029649,87541.0,87510.0,0.01142726]
[1769365672670,0.1136658,87523.0,87510.0,0.01142726]
[1769365672803,0.01056812,87547.0,87510.0,0.01142726]
[1769365672804,0.0001242,87535.0,87517.0,1.07842074]
[1769365673013,0.09081647,87547.0,87523.0,0.01142556]
[1769365673258,0.09081647,87547.0,87520.0,0.37417938]
[1769365673259,0.09081647,87554.0,87520.0,0.01142595]
[1769365673432,0.09081647,87554.0,87515.0,1.07842074]
[1769365673433,0.01142361,87538.0,87507.0,0.01142765]
[1769365673660,0.89333042,87546.0,87506.0,0.01142778]
[1769365673834,0.01142361,87538.0,87506.0,0.01142778]
[1769365674041,0.01142361,87538.0,87510.0,0.01216295]
[1769365674239,0.68178913,87545.0,87510.0,0.01216295]
[1769365674240,0.01142282,87544.0,87510.0,0.01216295]
[1769365674464,1.080009,87543.0,87510.0,0.01216295]
[1769365674867,1.080009,87544.0,87510.0,0.02359021]
[1769365675067,0.4533346,87545.0,87509.0,0.00147403]
[1769365675068,0.01142361,87538.0,87509.0,0.00147403]
[1769365675429,0.0077118,87505.0,87483.0,0.01143079]
[1769365675634,0.0077118,87505.0,87493.0,0.01142948]
[1769365675805,0.0077118,87505.0,87490.0,0.01142987]
[1769365675806,0.01142556,87523.0,87490.0,0.01142987]
[1769365676018,1.080009,87522.0,87492.0,0.01142961]
[1769365676294,1.080009,87522.0,87493.0,0.01142948]
[1769365676416,1.080009,87523.0,87496.0,0.01142909]
[1769365676755,0.09081647,87528.0,87498.0,0.01142883]
[1769365676960,0.09081647,87528.0,87499.0,0.0114287]
[1769365677162,0.09081647,87528.0,87501.0,0.01142844]
[1769365677375,0.001,87543.0,87528.0,0.00081416]
[1769365677731,1.080009,87557.0,87529.0,0.00922163]
[1769365677934,0.6069,87557.0,87527.0,0.01142504]
[1769365678138,1.080009,87556.0,87527.0,0.01142504]
[1769365678455,1.080009,87553.0,87524.0,0.01142543]
[1769365678635,1.080009,87554.0,87517.0,0.01142635]
[1769365678838,1.080009,87553.0,87521.0,0.01142582]
[1769365679038,1.080009,87553.0,87522.0,0.00799839]
[1769365679236,1.080009,87553.0,87514.0,0.13938141]
[1769365679237,1.080009,87553.0,87516.0,0.01142648]
[1769365679435,0.00047423,87556.0,87512.0,0.06856185]
[1769365679436,0.13881872,87549.0,87512.0,0.011427]
[1769365679664,0.37417938,87540.0,87508.0,0.04116]
[1769365680045,0.4029649,87539.0,87513.0,0.01142687]
[1769365680247,1.080009,87552.0,87511.0,0.01142713]
[1769365680468,0.13881872,87554.0,87516.0,0.001]
[1769365680469,0.1953,87550.0,87516.0,0.001]
[1769365680669,1.080009,87550.0,87522.0,0.01142569]
[1769365680944,1.080009,87550.0,87516.0,0.01142648]
[1769365681157,1.080009,87550.0,87521.0,0.01142582]
[1769365681362,1.080009,87550.0,87516.0,0.01142648]
[1769365681501,1.080009,87550.0,87519.0,0.01142609]
[1769365681502,0.07894082,87550.0,87519.0,0.01142609]
[1769365681708,0.07894082,87550.0,87518.0,0.01142622]
[1769365681709,0.00047423,87556.0,87530.0,0.37417938]
[1769365681924,0.00047423,87556.0,87541.0,0.01142321]
[1769365682210,0.0005861,87570.0,87542.0,0.01142308]
[1769365682417,0.00072828,87570.0,87543.0,0.01142295]
[1769365682853,0.00072828,87570.0,87552.0,0.01142178]
[1769365683054,0.00072828,87570.0,87553.0,0.0150799]
[1769365683257,0.00072828,87570.0,87555.0,0.01142139]
[1769365683645,0.00172828,87570.0,87553.0,0.0150799]
[1769365684281,0.00072828,87570.0,87553.0,0.0150799]
[1769365684481,0.00072828,87570.0,87555.0,0.01142139]
[1769365684649,0.00072828,87570.0,87556.0,0.02344091]
[1769365684849,0.00072828,87570.0,87556.0,0.03486217]
[1769365685053,0.5971,87594.0,87559.0,0.06852518]
[1769365685258,0.4512,87592.0,87559.0,0.01156305]
[1769365685453,0.00918583,87559.0,87534.0,0.1756]
[1769365685770,0.11349245,87558.0,87538.0,0.15077312]
[1769365685997,0.11349245,87558.0,87540.0,0.12795467]
[1769365686153,0.00014199,87559.0,87538.0,0.02281845]
[1769365686352,0.00014199,87559.0,87545.0,0.12795467]
[1769365686560,0.00014199,87559.0,87538.0,0.02281845]
[1769365686854,0.00014199,87559.0,87539.0,0.01846526]
[1769365687079,0.001,87558.0,87539.0,0.01846526]
[1769365687283,0.11355468,87557.0,87537.0,0.04116]
[1769365687618,0.11355468,87556.0,87537.0,0.04116]
[1769365687826,0.11355468,87555.0,87537.0,0.04116]
[1769365688023,0.11355468,87554.0,87537.0,0.04116]
[1769365688221,0.11355468,87553.0,87538.0,0.021676]
[1769365688423,0.00014199,87559.0,87538.0,0.021676]
[1769365688783,0.011421,87558.0,87538.0,0.021676]
[1769365688984,0.11352694,87557.0,87539.0,0.12795467]
[1769365689124,0.11352694,87556.0,87537.0,0.04116]
[1769365689327,0.11352694,87555.0,87537.0,0.04116]
[1769365689529,0.11352694,87554.0,87537.0,0.04116]
[1769365689764,0.11352694,87553.0,87537.0,0.04116]
[1769365690147,0.001,87558.0,87537.0,0.04116]
[1769365690383,0.11352814,87557.0,87537.0,0.04116]
[1769365690839,0.11352814,87557.0,87541.0,0.01142321]
[1769365691051,0.11352814,87557.0,87543.0,0.12795467]
[1769365691309,0.11352814,87556.0,87537.0,0.16911467]
[1769365691528,0.11352814,87555.0,87537.0,0.16911467]
[1769365691756,0.01142347,87539.0,87507.0,0.40910327]
[1769365691963,0.01142347,87539.0,87518.0,0.12795467]
[1769365692185,0.00843311,87546.0,87508.0,0.12795467]
[1769365692421,0.01142426,87533.0,87510.0,0.12795467]
[1769365692865,0.15708694,87562.0,87507.0,0.04116]
[1769365692866,8.433e-05,87538.0,87507.0,0.04116]
[1769365693071,0.4478474,87537.0,87508.0,0.12795467]
[1769365693283,0.37311053,87537.0,87507.0,0.04116]
[1769365693681,0.01142543,87524.0,87508.0,0.12795467]
[1769365693887,0.01142504,87527.0,87508.0,0.12795467]
[1769365694102,0.0114253,87525.0,87507.0,0.04116]
[1769365694342,0.01142726,87510.0,87507.0,0.04116]
[1769365694560,0.01142765,87507.0,87483.0,0.36794327]
[1769365694786,0.01142739,87509.0,87479.0,0.01143131]
[1769365695033,0.01142739,87509.0,87483.0,0.00047423]
[1769365695269,0.37425819,87530.0,87483.0,0.00047423]
[1769365695477,0.37296281,87518.0,87487.0,0.12795467]
[1769365695694,0.37287848,87516.0,87483.0,0.00047423]
[1769365695894,0.01142791,87505.0,87483.0,0.00047423]
[1769365696132,0.01142765,87507.0,87483.0,0.00047423]
[1769365696133,0.05714117,87503.0,87483.0,0.00047423]
[1769365696378,0.05713634,87510.0,87483.0,0.00047423]
[1769365696587,0.60140813,87516.0,87483.0,0.00047423]
[1769365696588,0.37287848,87516.0,87487.0,0.12795467]
[1769365696794,0.001,87522.0,87516.0,0.01]
[1769365697004,0.01142465,87530.0,87516.0,0.01]
[1769365697218,0.01142465,87530.0,87493.0,1.11897832]
[1769365697219,0.3781108,87533.0,87494.0,0.01142935]
[1769365697421,0.3781108,87533.0,87501.0,0.12795467]
[1769365698049,0.020736,87543.0,87501.0,0.12795467]
[1769365698050,0.50922942,87548.0,87505.0,0.01142791]
[1769365698249,0.50922942,87548.0,87506.0,1.11897832]
[1769365698250,0.01775109,87545.0,87506.0,1.11897832]
[1769365698426,0.39062957,87545.0,87515.0,0.12795467]
[1769365698629,0.39062957,87545.0,87502.0,0.02422378]
[1769365698830,0.001,87522.0,87503.0,0.14354141]
[1769365699079,0.001,87522.0,87504.0,0.12795467]
[1769365699284,0.0114253,87525.0,87504.0,0.12795467]
[1769365699619,0.01142582,87521.0,87501.0,0.00047423]
[1769365699820,0.01142582,87521.0,87502.0,0.12795467]
[1769365700109,0.01142478,87529.0,87504.0,0.12795467]
[1769365700309,0.04071522,87528.0,87501.0,0.00047423]
[1769365700502,0.04071522,87528.0,87504.0,0.12895467]
[1769365701368,0.37287848,87534.0,87504.0,0.12895467]
[1769365701572,0.37287848,87534.0,87504.0,0.12795467]
[1769365701976,0.001,87529.0,87505.0,0.12795467]
[1769365702404,0.37287848,87534.0,87505.0,0.12795467]
[1769365703014,0.13635094,87542.0,87509.0,0.01142739]
[1769365703212,0.06268021,87541.0,87505.0,0.13938258]
[1769365703375,0.06268021,87541.0,87507.0,0.01142765]
[1769365703577,0.13635094,87544.0,87513.0,0.01142687]
[1769365703967,0.13635094,87544.0,87509.0,1.11897832]
[1769365703968,0.15410203,87545.0,87514.0,0.01142674]
[1769365704171,0.11368514,87544.0,87515.0,0.01142661]
[1769365704302,0.11368514,87543.0,87519.0,0.12795467]
[1769365704498,0.11368514,87542.0,87506.0,0.04116]
[1769365704740,0.1623415,87541.0,87512.0,0.18508954]
[1769365704940,0.11368514,87540.0,87513.0,1.13040519]
[1769365705117,0.11368514,87539.0,87514.0,0.01142674]
[1769365705335,0.11368514,87538.0,87514.0,0.12795467]
[1769365705538,0.11368514,87537.0,87514.0,0.12795467]
[1769365705759,0.11368514,87536.0,87514.0,0.12795467]
[1769365705960,0.11368514,87535.0,87515.0,0.01279547]
[1769365706270,0.11368514,87534.0,87515.0,0.01279547]
[1769365706521,0.11368514,87533.0,87515.0,0.01279547]
[1769365706675,0.01142282,87544.0,87515.0,0.01279547]
[1769365706676,0.01142243,87547.0,87515.0,1.1432004]
[1769365706886,0.11370642,87546.0,87516.0,0.01142648]
[1769365707101,0.11370642,87545.0,87517.0,0.02848824]
[1769365707301,0.11370642,87544.0,87517.0,0.02848824]
[1769365707496,0.11370642,87543.0,87507.0,0.06856582]
[1769365707736,0.11370642,87542.0,87509.0,0.01142739]
[1769365707921,0.11370642,87541.0,87506.0,0.16911467]
[1769365708075,0.11370642,87540.0,87506.0,0.16911467]
[1769365708288,0.11370642,87539.0,87506.0,0.16911467]
[1769365708486,0.11370642,87538.0,87506.0,0.04116]
[1769365708700,0.011424,87535.0,87506.0,0.04116]
[1769365708922,0.11370642,87534.0,87518.0,0.01142622]
[1769365709121,0.01142204,87550.0,87520.0,0.01142595]
[1769365709280,0.12514272,87549.0,87519.0,1.13040441]
[1769365709475,0.12514285,87548.0,87519.0,1.13040441]
[1769365709681,0.01142308,87542.0,87504.0,0.18698804]
[1769365709938,0.37425819,87550.0,87504.0,0.18698804]
[1769365709939,0.01142413,87534.0,87511.0,0.12795467]
[1769365710125,0.11372055,87533.0,87512.0,0.01691147]
[1769365710435,0.11372055,87532.0,87512.0,0.01691147]
[1769365710612,0.38430182,87540.0,87512.0,0.01691147]
[1769365710613,0.37287848,87540.0,87512.0,0.01691147]
[1769365710815,0.11372558,87539.0,87518.0,0.01142622]
[1769365710995,0.11372558,87538.0,87525.0,0.12795467]
[1769365711207,0.11372558,87537.0,87526.0,0.15232691]
[1769365711407,0.01142204,87550.0,87526.0,0.02437224]
[1769365711634,0.12514018,87549.0,87526.0,0.02437224]
[1769365711831,0.001,87534.0,87526.0,0.02437224]
[1769365712044,0.001,87534.0,87527.0,0.12795467]
[1769365712253,0.37287848,87555.0,87528.0,0.01637525]
[1769365712550,0.11372953,87554.0,87528.0,0.01637525]
[1769365712904,0.52074574,87569.0,87538.0,1.11897832]
[1769365713123,0.01141969,87568.0,87538.0,1.17165343]
[1769365713334,0.37287848,87569.0,87544.0,0.12795467]
[1769365713533,0.00014202,87568.0,87545.0,0.01279547]
[1769365713765,0.00014202,87568.0,87533.0,0.38209207]
[1769365713766,0.0114206,87561.0,87533.0,0.38209207]
[1769365714067,0.04406013,87567.0,87539.0,0.12795467]
[1769365714279,0.04406013,87567.0,87533.0,0.38209207]
[1769365714786,0.35129113,87568.0,87539.0,0.12795467]
[1769365715011,0.35129113,87568.0,87540.0,1.16022982]
[1769365715226,0.38642024,87568.0,87541.0,0.02490846]
[1769365715450,0.04406013,87567.0,87520.0,0.01142595]
[1769365715723,0.39520924,87559.0,87530.0,0.12795467]
[1769365716231,0.01142269,87545.0,87520.0,0.12795467]
[1769365716467,0.01142269,87545.0,87514.0,1.17165656]
[1769365716468,0.01142334,87540.0,87510.0,0.37295487]
[1769365716727,0.01142347,87539.0,87512.0,0.12795467]
[1769365717442,0.04406013,87567.0,87539.0,0.01]
[1769365717730,0.00014199,87559.0,87553.0,0.01142165]
[1769365718000,0.35114911,87582.0,87554.0,0.01622209]
[1769365718486,0.01141852,87577.0,87555.0,0.12795467]
[1769365718722,0.01141891,87574.0,87555.0,0.00047423]
[1769365719146,0.01141995,87566.0,87555.0,0.00047423]
[1769365720274,0.86397782,87572.0,87555.0,0.00047423]
[1769365721894,1.21512693,87572.0,87555.0,0.00047423]
[1769365722179,1.21512693,87572.0,87555.0,0.00022531]
[1769365722491,1.21512693,87572.0,87555.0,0.00010071]
[1769365722650,0.35114911,87572.0,87555.0,0.00010071]
[1769365723063,0.17885484,87593.0,87556.0,0.12795467]
[1769365723064,0.1364477,87589.0,87556.0,0.12795467]
[1769365723266,0.51070589,87590.0,87556.0,0.12795467]
[1769365723465,0.861855,87590.0,87556.0,0.12795467]
[1769365723664,0.35978888,87589.0,87556.0,0.12795467]
[1769365724251,0.35114911,87589.0,87556.0,0.12795467]
[1769365724834,0.35114911,87587.0,87555.0,0.00010071]
[1769365725188,0.46475576,87586.0,87556.0,0.12795467]
[1769365725388,0.11360665,87585.0,87556.0,0.12795467]
[1769365725948,0.11360665,87585.0,87557.0,1.16022982]
[1769365726151,0.0004,87596.0,87557.0,1.16022982]
[1769365726152,0.1368477,87596.0,87570.0,0.12795467]
[1769365726355,0.0004,87596.0,87571.0,0.12795467]
[1769365726538,0.0004,87596.0,87561.0,0.37295487]
[1769365726745,0.0004,87596.0,87560.0,0.12795467]
[1769365726746,0.35114911,87588.0,87560.0,0.12795467]
[1769365726958,0.35114911,87588.0,87550.0,0.06853213]
[1769365726959,0.01141787,87582.0,87550.0,0.01142204]
[1769365727175,0.01141787,87582.0,87561.0,0.12795467]
[1769365727374,0.0685074,87582.0,87561.0,0.12795467]
[1769365727575,0.01141852,87577.0,87562.0,0.12795467]
[1769365727788,0.011418,87581.0,87562.0,0.12795467]
[1769365727999,0.01141761,87584.0,87562.0,0.12795467]
[1769365728252,0.1364477,87607.0,87562.0,0.12795467]
[1769365728464,0.35114911,87600.0,87563.0,1.16022982]
[1769365728618,0.35154911,87596.0,87563.0,1.16022982]
[1769365729031,0.00844994,87595.0,87562.0,0.37295487]
[1769365729236,0.001,87584.0,87563.0,0.12795467]
[1769365729752,0.35114911,87592.0,87563.0,0.12795467]
[1769365729951,0.00844994,87589.0,87563.0,0.001]
[1769365730172,0.35114911,87588.0,87563.0,0.001]
[1769365730714,0.00844994,87587.0,87563.0,0.001]
[1769365730881,0.00844994,87583.0,87563.0,0.001]
[1769365731083,0.35114911,87580.0,87563.0,0.001]
[1769365731420,0.35114911,87580.0,87557.0,0.12795467]
[1769365731558,0.35114911,87580.0,87563.0,0.001]
[1769365732000,0.35114911,87580.0,87557.0,0.12795467]
[1769365732929,0.35114911,87580.0,87557.0,0.14076021]
[1769365733159,0.35114911,87595.0,87558.0,1.16022982]
[1769365733340,0.35114911,87595.0,87561.0,0.37295487]
[1769365733496,0.35959905,87595.0,87561.0,0.37295487]
[1769365733709,0.38714902,87594.0,87562.0,0.02847817]
[1769365733887,0.39559896,87594.0,87562.0,0.02847817]
[1769365734494,0.00844994,87593.0,87561.0,0.37295487]
[1769365734763,0.03599991,87594.0,87555.0,0.00010071]
[1769365734764,0.86378798,87579.0,87555.0,0.00010071]
[1769365734984,1.21493709,87579.0,87555.0,0.00010071]
[1769365735114,0.86378798,87579.0,87555.0,0.00010071]
[1769365735319,0.35114911,87576.0,87555.0,0.00010071]
[1769365735521,0.35114911,87574.0,87555.0,0.00010071]
[1769365737911,0.35214911,87574.0,87555.0,0.00010071]
[1769365738435,0.1137441,87573.0,87555.0,0.00010071]
[1769365739017,0.01141995,87566.0,87555.0,0.00010071]
[1769365739223,0.01141982,87567.0,87555.0,0.00010071]
[1769365739420,0.01141839,87578.0,87555.0,0.00010071]
[1769365739642,0.01141865,87576.0,87555.0,0.00010071]
[1769365739841,0.11382066,87575.0,87556.0,1.16022982]
[1769365740044,0.11382066,87575.0,87560.0,0.37295487]
[1769365740246,0.11382066,87574.0,87560.0,0.37295487]
[1769365740468,0.11382066,87573.0,87560.0,0.37295487]
[1769365740671,0.35114911,87588.0,87560.0,0.37295487]
[1769365740991,0.35114911,87588.0,87561.0,1.16022982]
[1769365741194,0.01141721,87587.0,87563.0,1.16022982]
[1769365741325,0.01141774,87583.0,87564.0,0.37295487]
[1769365741530,0.01141787,87582.0,87564.0,0.37295487]
[1769365741732,0.01141826,87579.0,87555.0,0.00010071]
[1769365741961,0.01141748,87585.0,87562.0,0.12795467]
[1769365742805,0.35114911,87584.0,87555.0,0.00010071]
[1769365743014,0.12033034,87581.0,87555.0,0.00010071]
[1769365743218,0.1661185,87577.0,87555.0,0.00010071]
[1769365743444,0.1661185,87575.0,87538.0,0.1482]
[1769365743638,0.1660188,87571.0,87538.0,0.1482]
[1769365743841,0.35048381,87568.0,87537.0,0.04116]
[1769365744062,0.35048381,87568.0,87542.0,0.12795467]
[1769365744427,0.09099244,87574.0,87550.0,0.37425819]
[1769365744628,0.09246629,87575.0,87550.0,0.37425819]
[1769365745082,0.00147385,87575.0,87560.0,0.37425819]
[1769365745413,0.00047385,87575.0,87550.0,0.37425819]
[1769365745554,0.001,87574.0,87552.0,0.12795467]
[1769365747475,0.00047385,87575.0,87552.0,0.12795467]
[1769365747702,0.00047385,87575.0,87550.0,0.37425819]
[1769365748718,0.09146629,87575.0,87550.0,0.37425819]
[1769365748871,0.35048381,87574.0,87545.0,0.32563438]
[1769365749074,0.04419501,87573.0,87547.0,0.12795467]
[1769365749900,0.00147385,87575.0,87550.0,0.37425819]
[1769365750099,0.00147385,87575.0,87551.0,1.15537697]
[1769365750680,0.09099244,87571.0,87551.0,1.15521953]
[1769365752723,0.11419408,87570.0,87551.0,1.15521953]
[1769365752911,0.11419408,87569.0,87551.0,1.15521953]
[1769365753110,0.11419408,87568.0,87552.0,0.32563438]
[1769365753317,0.11419408,87567.0,87554.0,1.15537697]
[1769365753583,0.00047385,87575.0,87555.0,0.0004893]
[1769365753733,0.00047385,87575.0,87560.0,0.32563438]
[1769365753932,0.00047385,87575.0,87562.0,1.15537697]
[1769365754341,0.00047385,87575.0,87563.0,0.12795467]
[1769365754538,0.35048381,87587.0,87563.0,0.12795467]
[1769365754539,0.13699501,87590.0,87564.0,1.15537697]
[1769365754738,0.00014207,87590.0,87580.0,0.00952615]
[1769365755360,0.0004,87596.0,87581.0,0.12795467]
[1769365755561,0.0004,87596.0,87582.0,1.10229365]
[1769365755775,0.01141448,87608.0,87585.0,0.32298472]
[1769365755995,0.0004,87609.0,87585.0,0.32298472]
[1769365756156,0.0004,87609.0,87581.0,0.00014207]
[1769365756540,0.63124879,87607.0,87581.0,0.00014207]
[1769365757460,0.42070714,87607.0,87581.0,0.00014207]
[1769365757696,0.0004,87609.0,87581.0,0.00014207]
[1769365757697,0.91026526,87606.0,87581.0,0.00014207]
[1769365757841,0.07194974,87602.0,87581.0,0.00014207]
[1769365758044,0.0114163,87594.0,87581.0,0.00014207]
[1769365758725,0.01141617,87595.0,87581.0,0.00014207]
[1769365758926,0.01141669,87591.0,87581.0,0.00014207]
[1769365759132,0.011418,87581.0,87562.0,0.17548]
[1769365759339,0.07180909,87585.0,87565.0,0.04159385]
[1769365759544,0.03063118,87581.0,87562.0,0.17548]
[1769365759748,0.03063118,87581.0,87545.0,0.16907467]
[1769365759749,0.34405504,87578.0,87546.0,0.12795467]
[1769365759948,0.00047356,87581.0,87546.0,0.12795467]
[1769365759949,0.34405504,87574.0,87546.0,0.12795467]
[1769365760150,0.35245497,87574.0,87547.0,0.12795467]
[1769365760353,0.35245497,87573.0,87547.0,0.12795467]
[1769365762121,0.35245497,87573.0,87547.0,0.12895467]
[1769365762722,0.34405504,87573.0,87547.0,1.23124832]
[1769365762930,0.00047356,87581.0,87553.0,1.10229365]
[1769365763129,0.00839993,87580.0,87552.0,0.32298472]
[1769365764198,0.00839993,87578.0,87547.0,0.12795467]
[1769365764401,0.34405504,87577.0,87547.0,0.12795467]
[1769365764741,0.34405504,87577.0,87547.0,1.23024832]
[1769365764945,0.37934789,87577.0,87547.0,0.12795467]
[1769365765150,0.37934789,87577.0,87549.0,1.10229365]
[1769365765550,0.1140209,87576.0,87549.0,1.10229365]
[1769365766368,0.00047356,87581.0,87560.0,0.37403518]
[1769365766574,0.00047356,87581.0,87547.0,0.1393771]
[1769365766575,0.00839993,87579.0,87551.0,0.32298472]
[1769365766770,0.47035836,87578.0,87551.0,0.32298472]
[1769365767008,0.11401452,87577.0,87551.0,0.32298472]
[1769365767757,0.11401452,87577.0,87552.0,1.10229365]
[1769365768094,0.32627902,87595.0,87552.0,1.10229365]
[1769365768332,8.4e-05,87592.0,87553.0,0.32298472]
[1769365768539,0.17651918,87589.0,87553.0,0.32298472]
[1769365768739,8.4e-05,87586.0,87553.0,0.32298472]
[1769365768940,0.18688491,87583.0,87553.0,0.32298472]
[1769365769200,8.4e-05,87581.0,87553.0,0.32298472]
[1769365769871,0.1913811,87581.0,87553.0,0.32298472]
[1769365770079,8.4e-05,87580.0,87553.0,0.32298472]
[1769365770220,8.4e-05,87580.0,87553.0,1.10229365]
[1769365770420,8.4e-05,87580.0,87554.0,0.32298472]
[1769365771221,8.4e-05,87580.0,87554.0,1.10229365]
[1769365771422,8.4e-05,87580.0,87555.0,0.32298472]
[1769365772247,8.4e-05,87580.0,87556.0,0.32298472]
[1769365772448,8.4e-05,87580.0,87555.0,1.10229365]
[1769365772449,8.4e-05,87580.0,87558.0,0.32298472]
[1769365772691,8.4e-05,87587.0,87558.0,1.10229365]
[1769365772894,0.0199207,87586.0,87559.0,0.32298472]
[1769365773671,8.4e-05,87594.0,87565.0,0.3391869]
[1769365773956,0.19566297,87589.0,87565.0,0.3391869]
[1769365774171,0.00014202,87595.0,87565.0,0.3391869]
[1769365774172,0.05709376,87576.0,87565.0,0.3391869]
[1769365774378,0.01141995,87566.0,87547.0,0.3391869]
[1769365774631,0.01141995,87566.0,87546.0,1.16302894]
[1769365774632,0.01141982,87567.0,87554.0,0.12795467]
[1769365774888,8.4e-05,87571.0,87554.0,0.12795467]
[1769365774889,0.01141969,87568.0,87554.0,0.12795467]
[1769365775642,8.4e-05,87571.0,87554.0,0.00047356]
[1769365775860,8.4e-05,87578.0,87555.0,0.3391869]
[1769365776059,0.0196587,87578.0,87555.0,0.3391869]
[1769365776268,8.4e-05,87577.0,87555.0,0.3391869]
[1769365778744,0.13699501,87583.0,87557.0,0.3391869]
[1769365778950,8.4e-05,87585.0,87561.0,0.3391869]
[1769365779152,8.4e-05,87585.0,87564.0,1.16302894]
[1769365779363,0.03397588,87585.0,87565.0,0.3391869]
[1769365779518,8.4e-05,87585.0,87565.0,0.3391869]
[1769365780152,0.1140381,87584.0,87565.0,0.3391869]
[1769365780348,0.1140381,87583.0,87565.0,0.3391869]
[1769365780523,0.1140381,87582.0,87566.0,0.3391869]
[1769365780742,0.1140381,87581.0,87566.0,0.3391869]
[1769365780947,0.1140381,87580.0,87566.0,0.3391869]
[1769365781152,0.1140381,87579.0,87566.0,0.3391869]
[1769365781355,0.1140381,87578.0,87554.0,0.00047356]
[1769365781611,8.4e-05,87576.0,87555.0,0.3391869]
[1769365781830,8.4e-05,87574.0,87555.0,0.3391869]
[1769365782057,8.4e-05,87572.0,87554.0,0.00047356]
[1769365782259,0.02311415,87570.0,87554.0,0.00047356]
[1769365782398,0.13715225,87569.0,87554.0,0.00047356]
[1769365782598,0.1140381,87568.0,87554.0,0.00047356]
[1769365782892,0.05710223,87563.0,87554.0,0.00047356]
[1769365783147,0.1140381,87562.0,87554.0,0.00047356]
[1769365783347,0.1140381,87561.0,87554.0,0.00147356]
[1769365783548,0.1140381,87560.0,87554.0,0.34066046]
[1769365783726,0.1140381,87559.0,87556.0,0.3391869]
[1769365783930,0.01141956,87569.0,87556.0,0.3391869]
[1769365784335,0.0114193,87571.0,87556.0,0.3391869]
[1769365785022,0.20154705,87580.0,87556.0,0.3391869]
[1769365785226,0.20154705,87578.0,87556.0,0.3391869]
[1769365785424,0.02311415,87577.0,87556.0,0.3391869]
[1769365786183,0.02311415,87577.0,87554.0,0.00047356]
[1769365786184,0.02311415,87574.0,87554.0,0.00047356]
[1769365786387,0.02311415,87573.0,87554.0,0.00047356]
[1769365787203,0.02311415,87573.0,87554.0,0.33966046]
[1769365788169,0.01141995,87566.0,87554.0,0.33966046]
[1769365788791,0.01142008,87565.0,87554.0,0.33966046]
[1769365789224,0.01141982,87567.0,87554.0,0.33966046]
[1769365789426,0.00023114,87573.0,87554.0,0.33966046]
[1769365789645,0.00023114,87572.0,87554.0,0.33966046]
[1769365790258,0.03758179,87574.0,87554.0,0.33966046]
[1769365790459,0.00023114,87576.0,87554.0,1.1635025]
[1769365790719,0.01,87554.0,87537.0,0.3391869]
[1769365790993,0.00047327,87554.0,87538.0,0.3391869]
[1769365791212,0.00047327,87554.0,87532.0,0.04112]
[1769365791213,0.00023114,87553.0,87532.0,0.04112]
[1769365791403,0.00047327,87554.0,87532.0,0.3803069]
[1769365791404,0.05711156,87548.0,87532.0,0.3803069]
[1769365791558,0.0114223,87548.0,87532.0,0.3803069]
[1769365791759,0.01142217,87549.0,87532.0,0.3803069]
[1769365791962,0.0114223,87548.0,87532.0,0.3803069]
[1769365792162,0.06853383,87548.0,87532.0,0.3803069]
[1769365792369,0.00023114,87547.0,87532.0,0.3803069]
[1769365793392,0.00023114,87551.0,87532.0,1.20414894]
[1769365793597,0.00023114,87551.0,87533.0,0.3391869]
[1769365794081,0.13699501,87567.0,87533.0,0.3391869]
[1769365794295,0.00023114,87568.0,87543.0,0.3391869]
[1769365794523,0.0382683,87569.0,87543.0,0.3391869]
[1769365794729,0.00023114,87563.0,87543.0,0.3391869]
[1769365795578,0.00023114,87568.0,87545.0,0.3391869]
[1769365795786,0.01142113,87557.0,87545.0,0.00047327]
[1769365795996,0.11430169,87556.0,87545.0,0.00047327]
[1769365796203,0.11407055,87555.0,87545.0,0.00047327]
[1769365796403,0.11407055,87554.0,87546.0,1.16302894]
[1769365796616,0.03868664,87568.0,87546.0,0.3392965]
[1769365796617,0.11407055,87553.0,87546.0,0.3392965]
[1769365796825,0.11407055,87552.0,87546.0,0.3392965]
[1769365797030,0.11407055,87551.0,87547.0,0.3391869]
[1769365797287,0.11407055,87550.0,87547.0,0.3391869]
[1769365797481,0.11407055,87549.0,87547.0,0.3391869]
[1769365797685,0.03868664,87568.0,87547.0,0.3392965]
[1769365797686,0.11407055,87548.0,87547.0,0.3392965]
[1769365799113,0.00809907,87548.0,87547.0,0.3392965]
[1769365800346,0.04693586,87568.0,87547.0,0.3392965]
[1769365800486,0.00824922,87566.0,87547.0,0.3392965]
[1769365800697,0.03752849,87565.0,87547.0,0.3392965]
[1769365800904,0.0098904,87547.0,87545.0,0.00047327]
[1769365801111,0.0098904,87547.0,87538.0,0.3391869]
[1769365801319,0.00824922,87539.0,87528.0,0.3391869]
[1769365801549,0.03316361,87544.0,87528.0,0.37314007]
[1769365801763,0.01142295,87543.0,87530.0,0.3391869]
[1769365801978,0.01142256,87546.0,87530.0,0.3391869]
[1769365801979,0.01142256,87546.0,87531.0,0.3391869]
[1769365802206,0.00047327,87547.0,87533.0,0.3391869]
[1769365803237,0.00872249,87547.0,87533.0,0.3391869]
[1769365803442,0.00872249,87547.0,87527.0,0.0003448]
[1769365803616,0.00824922,87538.0,87527.0,0.0003448]
[1769365804433,0.03490725,87544.0,87527.0,0.0003448]
[1769365804669,0.00047327,87547.0,87528.0,1.09504207]
[1769365804869,0.00047327,87547.0,87527.0,0.0003448]
[1769365804870,0.00047327,87547.0,87531.0,0.32655991]
[1769365805071,0.00824922,87546.0,87527.0,0.0003448]
[1769365805288,0.00824922,87542.0,87527.0,0.0003448]
[1769365805473,0.05711674,87540.0,87527.0,0.0003448]
[1769365805674,0.01142439,87532.0,87527.0,0.0003448]
[1769365805869,0.01142426,87533.0,87527.0,0.0003448]
[1769365806099,0.81122992,87529.0,87517.0,0.32880856]
[1769365806299,0.01142517,87526.0,87517.0,0.32880856]
[1769365806514,0.01142504,87527.0,87517.0,0.32880856]
[1769365806712,0.03061801,87537.0,87517.0,0.32880856]
[1769365806867,0.01372896,87535.0,87517.0,0.32880856]
[1769365807089,0.0167613,87537.0,87507.0,0.32880856]
[1769365807090,0.0098904,87517.0,87507.0,0.32880856]
[1769365807450,0.02361936,87517.0,87506.0,0.0003448]
[1769365807612,0.01372896,87516.0,87506.0,0.0003448]